{"text_format":"1","workbook":"xlsx","n_sheets":2,"sheets":["Gabarito","Resultado Simulado"],"not_rendered":{"charts":2,"images":6,"macros":1,"external_links":0,"defined_names":3,"comments":0,"pivot_tables":0},"unopened":[],"bounds":{"document_bytes":16777216,"sheet_cells":100000,"rows_first":2000,"rows_last":500,"rows_between":2000,"halvings":0,"cell_chars":16384,"cell_head_chars":4096},"cells_cut":0,"cells_raw":0,"read":"whole","date_system":"1900"}

{"sheet":"Gabarito","index":0,"n_rows":67,"n_cols":19,"rows_kept":67,"cut":false,"hidden":false,"merged":[[51,2,57,2],[58,2,59,2],[17,11,18,11],[17,2,24,2],[25,2,26,2],[19,11,23,11],[24,11,30,11],[31,11,36,11],[37,11,42,11],[43,11,48,11],[49,11,53,11],[36,2,37,2],[38,2,42,2],[43,2,48,2],[49,2,50,2],[27,2,33,2],[34,2,35,2],[0,2,6,15],[8,2,8,15],[9,2,9,15],[10,2,10,15],[11,2,11,15],[12,2,12,15],[13,2,13,15],[14,2,14,15]]}
[]
[]
[]
[]
[]
[]
[]
[]
[]
[]
[]
[]
[]
[]
[]
[]
[null,null,"Disciplina","Questão","Resposta do aluno","Acerto - Erro","Gabarito","Tipo de questão","Correta/ Incorreta",null,null,"Disciplina","Questão","Resposta do aluno","Acerto - Erro","Gabarito","Tipo questão","Correta/ Incorreta"]
[null,"Ética","Ética",1,null,{"$f":"IF(E18=\"anulada\",1,IF(E18=\"\",\"\",IF(E18=G18,1,0)))","v":""},"A","P",1,null,"Consumidor","Consumidor ",44,null,{"$f":"IF(N18=\"anulada\",1,IF(N18=\"\",\"\",IF(N18=P18,1,0)))","v":""},"C","P",1,"A"]
[null,"Ética",null,2,null,{"$f":"IF(E19=\"anulada\",1,IF(E19=\"\",\"\",IF(E19=G19,1,0)))","v":""},"B","C",1,null,"Consumidor",null,45,null,"","C","D",1,"B"]
[null,"Ética",null,3,null,"","C","P",1,null,"Empresarial","Empresarial",46,null,"","B","C",1,"C"]
[null,"Ética",null,4,null,"","A","P",1,null,"Empresarial",null,47,null,"","A","C",1,"D"]
[null,"Ética",null,5,null,"","C","D",1,null,"Empresarial",null,48,null,"","D","D",1,"Anulada"]
[null,"Ética",null,6,null,"","D","P",1,null,"Empresarial",null,49,null,"","C","D",1]
[null,"Ética",null,7,null,"","D","P",1,null,"Empresarial",null,50,null,"","D","C",1]
[null,"Ética",null,8,null,"","B","P",1,null,"Processo Civil","Processo Civil",51,null,"","C","D",1]
[null,"Filosofia","Filosofia",9,null,"","D","D",1,null,"Processo Civil",null,52,null,"","A","C",1]
[null,"Filosofia",null,10,null,"","D","P",1,null,"Processo Civil",null,53,null,"","C","C",1]
[null,"Constitucional","Constitucional",11,null,"","A","C",1,null,"Processo Civil",null,54,null,"","A","C",1]
[null,"Constitucional",null,12,null,"","C","C",1,null,"Processo Civil",null,55,null,"","C","C",1]
[null,"Constitucional",null,13,null,"","B","D",1,null,"Processo Civil",null,56,null,"","A","D",1]
[null,"Constitucional",null,14,null,"","C","D",1,null,"Processo Civil",null,57,null,"","C","D",1]
[null,"Constitucional",null,15,null,"","B","D",1,null,"Penal","Penal",58,null,"","D","C",1]
[null,"Constitucional",null,16,null,"","D","D",1,null,"Penal",null,59,null,"","D","P",1]
[null,"Constitucional",null,17,null,"","D","C",1,null,"Penal",null,60,null,"","B","P",1]
[null,"Humanos","Humanos",18,null,"","A","D",2,null,"Penal",null,61,null,"","D","D",1]
[null,"Humanos",null,19,null,"","D","D",2,null,"Penal",null,62,null,"","D","D",1]
[null,"Internacional","Internacional",20,null,"","A","C",1,null,"Penal",null,63,null,"","C","D",1]
[null,"Internacional",null,21,null,"","D","D",1,null,"Processo Penal","Processo Penal",64,null,"","C","C",1]
[null,"Tributário","Tributário",22,null,"","B","C",1,null,"Processo Penal",null,65,null,"","C","D",1]
[null,"Tributário",null,23,null,"","C","D",2,null,"Processo Penal",null,66,null,"","B","C",2]
[null,"Tributário",null,24,null,"","B","C",1,null,"Processo Penal",null,67,null,"","D","P",1]
[null,"Tributário",null,25,null,"","B","D",1,null,"Processo Penal",null,68,null,"","C","D",1]
[null,"Tributário",null,26,null,"","A","P",1,null,"Processo Penal",null,69,null,"","C","C",2]
[null,"Administrativo","Administrativo",27,null,"","A","C",1,null,"Trabalho","Trabalho",70,null,"","A","C",1]
[null,"Administrativo",null,28,null,"","A","D",1,null,"Trabalho",null,71,null,"","B","C",1]
[null,"Administrativo",null,29,null,"","A","D",1,null,"Trabalho",null,72,null,"","B","D",1]
[null,"Administrativo",null,30,null,"","A","C",1,null,"Trabalho",null,73,null,"","D","C",1]
[null,"Administrativo",null,31,null,"","B","D",1,null,"Trabalho",null,74,null,"","C","D",1]
[null,"Administrativo",null,32,null,"","A","C",1,null,"Trabalho",null,75,null,"","B","C",1]
[null,"Ambiental","Ambiental",33,null,"","D","D",1,null,"Processo trabalho","Processo do Trabalho",76,null,"","A","P",1]
[null,"Ambiental",null,34,null,"","C","C",1,null,"Processo trabalho",null,77,null,"","B","P",1]
[null,"Civil","Civil",35,null,"","C","D",1,null,"Processo trabalho",null,78,null,"","B","C",1]
[null,"Civil",null,36,null,"","C","C",1,null,"Processo trabalho",null,79,null,"","C","D",1]
[null,"Civil",null,37,null,"","C","P",2,null,"Processo trabalho",null,80,null,"","C","D",1]
[null,"Civil",null,38,null,"","D","P",1]
[null,"Civil",null,39,null,"","C","P",2]
[null,"Civil",null,40,null,"","A","P",1]
[null,"Civil",null,41,null,"","B","P",1]
[null,"ECA","ECA",42,null,"","C","P",1]
[null,"ECA",null,43,null,"","B","P",1]
[null,null,null,null,null,null,null,null,{"$f":"COUNTIF(I18:I59,1)","v":37},null,null,null,null,null,null,null,null,{"$f":"COUNTIF(R18:R59,1)","v":35}]
[null,null,null,null,null,null,null,null,{"$f":"COUNTIF(I18:I59,2)","v":5},null,null,null,null,null,null,null,null,{"$f":"COUNTIF(R18:R59,2)","v":2}]
[]
[]
[null,null,null,null,null,null,null,null,null,null,{"$f":"SUM(I65:J65)","v":0}]
[null,null,null,null,null,null,null,null,null,null,{"$f":"SUM(I66:J66)","v":0}]
[null,null,null,null,null,null,null,null,null,null,{"$f":"SUM(I67:J67)","v":0}]

{"sheet":"Resultado Simulado","index":1,"n_rows":45,"n_cols":17,"rows_kept":45,"cut":false,"hidden":false,"merged":[[38,1,38,8],[25,1,25,8],[26,1,26,8],[1,5,2,5],[21,1,21,14],[20,4,20,14],[1,1,2,1],[36,1,36,8],[37,1,37,8],[1,2,2,2],[1,3,2,3],[1,4,2,4],[1,12,2,12],[1,13,2,13],[1,14,2,14],[17,8,18,10],[7,18,8,18],[1,7,2,7],[1,8,2,8],[1,9,2,9],[1,10,2,10],[1,11,2,11],[1,15,2,15],[1,16,2,16],[1,17,2,17],[1,18,2,18],[15,10,16,12],[13,12,14,14],[11,14,12,16],[9,16,10,19],[15,9,16,9],[13,11,14,11],[11,13,12,13],[9,15,10,15],[1,22,2,24],[7,19,8,21],[5,20,6,22],[3,22,4,24],[3,21,4,21],[5,19,6,19],[1,19,2,19]]}
[]
[null,"DISCIPLINAS","QUESTÕES POR DISCIPLINA","ACERTOS","ERROS"]
[]
[null,"Ética",8,{"$f":"SUMIF(Gabarito!$B$18:$B$60,'Resultado Simulado'!B4,Gabarito!$F$18:$F$60)","v":0},{"$f":"C4-D4","v":8}]
[null,"Trabalho",6,{"$f":"SUMIF(Gabarito!$K$18:$K$60,'Resultado Simulado'!B5,Gabarito!$O$18:$O$60)","v":0},{"$f":"C5-D5","v":6}]
[null,"Processo trabalho",5,{"$f":"SUMIF(Gabarito!$K$18:$K$60,'Resultado Simulado'!B6,Gabarito!$O$18:$O$60)","v":0},5]
[null,"Constitucional",7,{"$f":"SUMIF(Gabarito!$B$18:$B$60,'Resultado Simulado'!B7,Gabarito!$F$18:$F$60)","v":0},7]
[null,"Administrativo",6,{"$f":"SUMIF(Gabarito!$B$18:$B$60,'Resultado Simulado'!B8,Gabarito!$F$18:$F$60)","v":0},6]
[null,"Tributário",5,{"$f":"SUMIF(Gabarito!$B$18:$B$60,'Resultado Simulado'!B9,Gabarito!$F$18:$F$60)","v":0},5]
[null,"Empresarial",5,{"$f":"SUMIF(Gabarito!$K$18:$K$60,'Resultado Simulado'!B10,Gabarito!$O$18:$O$60)","v":0},5]
[null,"Processo Penal",6,{"$f":"SUMIF(Gabarito!$K$18:$K$60,'Resultado Simulado'!B11,Gabarito!$O$18:$O$60)","v":0},6]
[null,"Civil",7,{"$f":"SUMIF(Gabarito!$B$18:$B$60,'Resultado Simulado'!B12,Gabarito!$F$18:$F$60)","v":0},7]
[null,"Processo Civil",7,{"$f":"SUMIF(Gabarito!$K$18:$K$60,'Resultado Simulado'!B13,Gabarito!$O$18:$O$60)","v":0},7]
[null,"Penal",6,{"$f":"SUMIF(Gabarito!$K$18:$K$60,'Resultado Simulado'!B14,Gabarito!$O$18:$O$60)","v":0},6]
[null,"Humanos",2,{"$f":"SUMIF(Gabarito!$B$18:$B$60,'Resultado Simulado'!B15,Gabarito!$F$18:$F$60)","v":0},2]
[null,"Ambiental",2,{"$f":"SUMIF(Gabarito!$B$18:$B$60,'Resultado Simulado'!B16,Gabarito!$F$18:$F$60)","v":0},2]
[null,"Internacional",2,{"$f":"SUMIF(Gabarito!$B$18:$B$60,'Resultado Simulado'!B17,Gabarito!$F$18:$F$60)","v":0},2]
[null,"ECA",2,{"$f":"SUMIF(Gabarito!$B$18:$B$60,'Resultado Simulado'!B18,Gabarito!$F$18:$F$60)","v":0},2]
[null,"Consumidor",2,{"$f":"SUMIF(Gabarito!$K$18:$K$60,'Resultado Simulado'!B19,Gabarito!$O$18:$O$60)","v":0},2]
[null,"Filosofia",2,{"$f":"SUMIF(Gabarito!$B$18:$B$60,'Resultado Simulado'!B20,Gabarito!$F$18:$F$60)","v":0},2,null,null,null,null,null,null,null,null,null,null,{"$f":"D20/C20","v":0},{"$f":"D20-C20","v":-2}]
[null,"TOTAL",{"$f":"SUM(C4:C20)","v":80},{"$f":"SUM(D4:D20)","v":0},{"$f":"IF(D21=0,\"\",IF(D21<40,\"Atenção! Você acertou menos de 50% das questões. É necessário estudar mais. Verifique as matérias que necessitam maior ponto de atenção. Clique no botão ORGANIZAR ESTUDO\",IF(D21>55,\"Parabéns! Você acertou mais de 70% das questões e parece preparado(a) para a prova. Boa sorte!\",\"Parabéns! Você acertou mais de 50% das questões, porém, para garantir seu sucesso, verifique as matérias EM VERMELHO que mais necessitam de sua atenção e prepare-se. \")))","v":""}]
[]
[]
[]
[]
[null,"Desempenho do aluno por tipo de questão"]
[null,"Satisfatório acima de 50%"]
[]
[null,null,"Questão","Prova","Acertos"]
[null,null,"Prática",59,{"$f":"SUM(#REF!)","v":{"$error":"#REF!"}},{"$f":"IF(E30/D30>0.49,1,0)","v":{"$error":"#REF!"}}]
[null,null,"Conceitual",11,{"$f":"SUM(#REF!)","v":{"$error":"#REF!"}},{"$f":"IF(E31/D31>0.49,1,0)","v":{"$error":"#REF!"}}]
[null,null,"Direta",10,{"$f":"SUM(#REF!)","v":{"$error":"#REF!"}},{"$f":"IF(E32/D32>0.49,1,0)","v":{"$error":"#REF!"}}]
[]
[null,null,"TOTAL",{"$f":"SUM(D30:D32)","v":80}]
[]
[]
[]
[null,"Desempenho do aluno (assinale a opção \"correta\" ou \"incorreta\")"]
[null,"Satisfatório acima de 50%"]
[]
[null,null,"Questão","Prova","Acertos"]
[null,null,"Correta",79,{"$f":"SUM(#REF!)","v":{"$error":"#REF!"}},{"$f":"IF(E42/D42>0.49,1,0)","v":{"$error":"#REF!"}}]
[null,null,"Incorreta",1,{"$f":"SUM(#REF!)","v":{"$error":"#REF!"}},{"$f":"IF(E43/D43>0.49,1,0)","v":{"$error":"#REF!"}}]
[]
[null,null,"TOTAL",{"$f":"SUM(D42:D43)","v":80}]